[Event "Early-Titled-Tuesday-Blitz-May-14-2024"]
[Site "Chess.com"]
[Date "2024.05.14"]
[Round "11"]
[White "scarabee43"]
[Black "Kunalm64"]
[Result "0-1"]
[WhiteElo "2791"]
[BlackElo "2629"]
[TimeControl "180+1"]
[EndTime "10:04:54 PDT"]
[Termination "Kunalm64 won by checkmate"]

1. Nf3 {[%clk 0:03:00.9]} 1... Nc6 {[%clk 0:02:58]} 2. d4 {[%clk 0:02:59.9]}
2... d5 {[%clk 0:02:58.2]} 3. Nc3 {[%clk 0:02:57.6]} 3... Nf6 {[%clk 0:02:57.6]}
4. g3 {[%clk 0:02:57.8]} 4... h5 {[%clk 0:02:56.7]} 5. Bg2 {[%clk 0:02:57.7]}
5... Bf5 {[%clk 0:02:56.1]} 6. Bf4 {[%clk 0:02:55.7]} 6... e6 {[%clk 0:02:55.7]}
7. a3 {[%clk 0:02:54.6]} 7... Ne4 {[%clk 0:02:54.3]} 8. Nxe4 {[%clk 0:02:50.6]}
8... Bxe4 {[%clk 0:02:53.9]} 9. O-O {[%clk 0:02:50]} 9... Bd6 {[%clk 0:02:50.6]}
10. Bxd6 {[%clk 0:02:49.2]} 10... Qxd6 {[%clk 0:02:50.6]} 11. e3 {[%clk
0:02:48.2]} 11... O-O-O {[%clk 0:02:47.9]} 12. h4 {[%clk 0:02:46.2]} 12... f6
{[%clk 0:02:47.2]} 13. b4 {[%clk 0:02:43.8]} 13... g5 {[%clk 0:02:45.5]} 14.
hxg5 {[%clk 0:02:33.6]} 14... h4 {[%clk 0:02:45.1]} 15. Nxh4 {[%clk 0:02:19]}
15... fxg5 {[%clk 0:02:44.5]} 16. Bxe4 {[%clk 0:02:19.5]} 16... gxh4 {[%clk
0:02:43.2]} 17. Bg2 {[%clk 0:02:11]} 17... hxg3 {[%clk 0:02:42.8]} 18. f4 {[%clk
0:02:11.2]} 18... Ne7 {[%clk 0:02:39.1]} 19. c3 {[%clk 0:02:00.6]} 19... Nf5
{[%clk 0:02:38.8]} 20. e4 {[%clk 0:02:01]} 20... Ne3 {[%clk 0:02:31.6]} 21. Qf3
{[%clk 0:02:01.5]} 21... Nxg2 {[%clk 0:02:19.6]} 22. Kxg2 {[%clk 0:01:57.7]}
22... Rh2+ {[%clk 0:02:16.2]} 23. Kxg3 {[%clk 0:01:49.5]} 23... dxe4 {[%clk
0:01:49.1]} 24. Qxe4 {[%clk 0:01:41]} 24... Rdh8 {[%clk 0:01:46.3]} 25. Rh1
{[%clk 0:01:40.1]} 25... R8h3+ {[%clk 0:01:45.9]} 26. Kg4 {[%clk 0:01:40.5]}
26... Qe7 {[%clk 0:01:25.5]} 27. Rxh2 {[%clk 0:01:33]} 27... Qh4# {[%clk
0:01:25]} 0-1

[Event "Early-Titled-Tuesday-Blitz-May-14-2024"]
[Site "Chess.com"]
[Date "2024.05.14"]
[Round "11"]
[White "zozik"]
[Black "malakismayil"]
[Result "0-1"]
[WhiteElo "2346"]
[BlackElo "2532"]
[TimeControl "180+1"]
[EndTime "10:05:17 PDT"]
[Termination "malakismayil won by resignation"]

1. d4 {[%clk 0:03:00.9]} 1... d5 {[%clk 0:02:59.3]} 2. Nf3 {[%clk 0:02:59.5]}
2... e6 {[%clk 0:02:59.9]} 3. g3 {[%clk 0:02:59.3]} 3... Nf6 {[%clk 0:03:00.6]}
4. Bg2 {[%clk 0:03:00.1]} 4... Be7 {[%clk 0:03:01.2]} 5. O-O {[%clk 0:03:00.6]}
5... O-O {[%clk 0:03:02.1]} 6. c4 {[%clk 0:03:00.9]} 6... dxc4 {[%clk 0:03:03]}
7. Qc2 {[%clk 0:03:01.3]} 7... b5 {[%clk 0:03:03.3]} 8. Ne5 {[%clk 0:02:57.4]}
8... Nd5 {[%clk 0:03:01.1]} 9. a4 {[%clk 0:02:53.2]} 9... c6 {[%clk 0:02:54.8]}
10. axb5 {[%clk 0:02:36.7]} 10... cxb5 {[%clk 0:02:55.7]} 11. Na3 {[%clk
0:02:37]} 11... Bxa3 {[%clk 0:02:50.2]} 12. Rxa3 {[%clk 0:02:35.4]} 12... Bb7
{[%clk 0:02:50.6]} 13. Bd2 {[%clk 0:02:25.9]} 13... Nd7 {[%clk 0:02:44.1]} 14.
Ba5 {[%clk 0:02:22]} 14... Qe8 {[%clk 0:02:38.2]} 15. e4 {[%clk 0:02:18.6]}
15... N5f6 {[%clk 0:02:31.4]} 16. Bb4 {[%clk 0:02:15.2]} 16... Nxe5 {[%clk
0:02:24]} 17. dxe5 {[%clk 0:02:14.5]} 17... Nd7 {[%clk 0:02:24.1]} 18. f4 {[%clk
0:02:05.2]} 18... a5 {[%clk 0:02:19.4]} 19. Bxa5 {[%clk 0:01:56.8]} 19... Qc8
{[%clk 0:02:15]} 20. Bb4 {[%clk 0:01:48.8]} 20... Re8 {[%clk 0:02:10.7]} 21. Qf2
{[%clk 0:01:41]} 21... Rxa3 {[%clk 0:02:06.8]} 22. Bxa3 {[%clk 0:01:34.9]} 22...
Qa8 {[%clk 0:02:07.7]} 23. Rd1 {[%clk 0:01:31.9]} 23... Nf8 {[%clk 0:01:54.8]}
24. Qd4 {[%clk 0:01:29.3]} 24... h5 {[%clk 0:01:49.6]} 25. h3 {[%clk 0:01:25.9]}
25... Ng6 {[%clk 0:01:46.5]} 26. Qd7 {[%clk 0:01:18]} 26... Bc6 {[%clk
0:01:41.7]} 27. Qd6 {[%clk 0:01:15.8]} 27... Bxe4 {[%clk 0:01:38.9]} 28. Bxe4
{[%clk 0:01:11.4]} 28... Qxe4 {[%clk 0:01:39.8]} 29. Qd4 {[%clk 0:01:11.5]}
29... Qf3 {[%clk 0:01:34.8]} 30. Qf2 {[%clk 0:01:10.4]} 30... Qxd1+ {[%clk
0:01:33.3]} 0-1

[Event "Early-Titled-Tuesday-Blitz-May-14-2024"]
[Site "Chess.com"]
[Date "2024.05.14"]
[Round "11"]
[White "francyIM"]
[Black "ReadySkate"]
[Result "1-0"]
[WhiteElo "2865"]
[BlackElo "2735"]
[TimeControl "180+1"]
[EndTime "10:05:50 PDT"]
[Termination "francyIM won by resignation"]

1. e4 {[%clk 0:03:00.9]} 1... c5 {[%clk 0:02:59.2]} 2. e5 {[%clk 0:02:57.3]}
2... Nc6 {[%clk 0:02:58.9]} 3. f4 {[%clk 0:02:57.2]} 3... d6 {[%clk 0:02:58.1]}
4. Nf3 {[%clk 0:02:57.8]} 4... g6 {[%clk 0:02:57.6]} 5. Bb5 {[%clk 0:02:57.8]}
5... Bd7 {[%clk 0:02:57]} 6. Qe2 {[%clk 0:02:48.7]} 6... Bg7 {[%clk 0:02:54.9]}
7. exd6 {[%clk 0:02:48.1]} 7... e6 {[%clk 0:02:50.7]} 8. Nc3 {[%clk 0:02:44.2]}
8... a6 {[%clk 0:02:48.6]} 9. Bd3 {[%clk 0:02:39.3]} 9... Nd4 {[%clk 0:02:45.2]}
10. Nxd4 {[%clk 0:02:39.2]} 10... cxd4 {[%clk 0:02:46.1]} 11. Ne4 {[%clk
0:02:39.5]} 11... Nf6 {[%clk 0:02:45.6]} 12. c4 {[%clk 0:02:32]} 12... dxc3
{[%clk 0:02:38.1]} 13. bxc3 {[%clk 0:02:31.6]} 13... Bc6 {[%clk 0:02:38]} 14.
Ba3 {[%clk 0:02:31.6]} 14... O-O {[%clk 0:02:33.9]} 15. O-O {[%clk 0:02:31.2]}
15... Qa5 {[%clk 0:02:08.3]} 16. Bb4 {[%clk 0:02:29.5]} 16... Qb6+ {[%clk
0:02:06.6]} 17. Bc5 {[%clk 0:02:28.1]} 17... Qa5 {[%clk 0:02:06.8]} 18. Bb4
{[%clk 0:02:21.4]} 18... Qb6+ {[%clk 0:02:05.6]} 19. Bc5 {[%clk 0:02:21.7]}
19... Qa5 {[%clk 0:02:05.7]} 20. Nxf6+ {[%clk 0:02:21.7]} 20... Bxf6 {[%clk
0:02:05.5]} 21. Qe3 {[%clk 0:02:22]} 21... Rac8 {[%clk 0:01:51.2]} 22. a4 {[%clk
0:02:18]} 22... Rfd8 {[%clk 0:01:27]} 23. Rf2 {[%clk 0:02:12.9]} 23... Rd7
{[%clk 0:01:18.2]} 24. Be2 {[%clk 0:02:06.5]} 24... Bd5 {[%clk 0:01:08.3]} 25.
Bb6 {[%clk 0:01:57.3]} 25... Rxc3 {[%clk 0:00:42.5]} 26. dxc3 {[%clk 0:01:56.3]}
26... Qxc3 {[%clk 0:00:41]} 27. Qxc3 {[%clk 0:01:54]} 27... Bxc3 {[%clk
0:00:41.9]} 28. Rc1 {[%clk 0:01:53.7]} 28... Bb4 {[%clk 0:00:42]} 29. Rc8+
{[%clk 0:01:44.9]} 29... Kg7 {[%clk 0:00:40.6]} 30. Bd4+ {[%clk 0:01:45.3]}
30... Kh6 {[%clk 0:00:40.6]} 31. g4 {[%clk 0:01:45.4]} 31... g5 {[%clk
0:00:39.1]} 32. Rg8 {[%clk 0:01:44.8]} 1-0

[Event "Early-Titled-Tuesday-Blitz-May-14-2024"]
[Site "Chess.com"]
[Date "2024.05.14"]
[Round "11"]
[White "xasid81"]
[Black "Abund"]
[Result "1-0"]
[WhiteElo "2625"]
[BlackElo "2780"]
[TimeControl "180+1"]
[EndTime "10:05:50 PDT"]
[Termination "xasid81 won by checkmate"]

1. Nf3 {[%clk 0:02:59.2]} 1... g6 {[%clk 0:02:59.7]} 2. d4 {[%clk 0:02:59.7]}
2... Bg7 {[%clk 0:02:59.8]} 3. e4 {[%clk 0:03:00.3]} 3... d6 {[%clk 0:02:56.8]}
4. Nc3 {[%clk 0:03:00.7]} 4... Bd7 {[%clk 0:02:51.6]} 5. Bc4 {[%clk 0:03:00.8]}
5... e5 {[%clk 0:02:38.2]} 6. dxe5 {[%clk 0:02:59.2]} 6... dxe5 {[%clk
0:02:38.2]} 7. Qd5 {[%clk 0:02:55.6]} 7... Be6 {[%clk 0:02:19.8]} 8. Qxb7 {[%clk
0:02:48.2]} 8... Nd7 {[%clk 0:02:08.4]} 9. Bxe6 {[%clk 0:02:47.9]} 9... fxe6
{[%clk 0:02:09]} 10. Qc6 {[%clk 0:02:41.2]} 10... Ne7 {[%clk 0:01:54.8]} 11.
Qxe6 {[%clk 0:02:38.7]} 11... Nc5 {[%clk 0:01:44.7]} 12. Qc4 {[%clk 0:02:36.1]}
12... Qd6 {[%clk 0:01:43.8]} 13. Be3 {[%clk 0:02:35.4]} 13... Ne6 {[%clk
0:01:41.4]} 14. Nb5 {[%clk 0:02:24.7]} 14... Qd7 {[%clk 0:01:35.8]} 15. Rd1
{[%clk 0:02:20.4]} 15... Nd4 {[%clk 0:01:31.4]} 16. Nxc7+ {[%clk 0:02:15.9]}
16... Kf8 {[%clk 0:01:31.8]} 17. Bxd4 {[%clk 0:02:04.1]} 17... Rc8 {[%clk
0:01:16.1]} 18. Ne6+ {[%clk 0:01:59.5]} 18... Kg8 {[%clk 0:01:04.4]} 19. Bc5
{[%clk 0:01:57.2]} 19... Qe8 {[%clk 0:00:28.1]} 20. Nd8+ {[%clk 0:01:51.8]}
20... Kf8 {[%clk 0:00:26.2]} 21. Ng5 {[%clk 0:01:49.5]} 21... Rxc5 {[%clk
0:00:19.2]} 22. Nge6+ {[%clk 0:01:44.3]} 22... Kg8 {[%clk 0:00:19.4]} 23. Nxc5+
{[%clk 0:01:44.2]} 23... Kf8 {[%clk 0:00:19.7]} 24. Nd7+ {[%clk 0:01:42.5]}
24... Qxd7 {[%clk 0:00:13.5]} 25. Qf7# {[%clk 0:01:43.4]} 1-0

[Event "Early-Titled-Tuesday-Blitz-May-14-2024"]
[Site "Chess.com"]
[Date "2024.05.14"]
[Round "11"]
[White "viktorskliarov"]
[Black "Gangster-accountant01"]
[Result "0-1"]
[WhiteElo "2679"]
[BlackElo "2577"]
[TimeControl "180+1"]
[EndTime "10:06:06 PDT"]
[Termination "Gangster-accountant01 won by resignation"]

1. e4 {[%clk 0:03:00.9]} 1... g6 {[%clk 0:02:45]} 2. d4 {[%clk 0:03:00]} 2...
Bg7 {[%clk 0:02:25.5]} 3. Nc3 {[%clk 0:02:59.8]} 3... d6 {[%clk 0:02:24.5]} 4.
Be3 {[%clk 0:02:59.5]} 4... Nf6 {[%clk 0:02:23.1]} 5. f3 {[%clk 0:02:59.9]} 5...
Nbd7 {[%clk 0:02:22.7]} 6. Qd2 {[%clk 0:02:59.7]} 6... e5 {[%clk 0:02:22.6]} 7.
Nge2 {[%clk 0:02:59.3]} 7... exd4 {[%clk 0:02:22.5]} 8. Nxd4 {[%clk 0:02:59.3]}
8... O-O {[%clk 0:02:23.2]} 9. O-O-O {[%clk 0:02:59.1]} 9... a6 {[%clk
0:02:22.4]} 10. g4 {[%clk 0:02:59]} 10... Ne5 {[%clk 0:02:22.1]} 11. Be2 {[%clk
0:02:45.5]} 11... b5 {[%clk 0:02:18.3]} 12. g5 {[%clk 0:02:36.7]} 12... Nh5
{[%clk 0:02:16.2]} 13. f4 {[%clk 0:02:33]} 13... Ng4 {[%clk 0:02:16.3]} 14. Bxg4
{[%clk 0:01:56.2]} 14... Bxg4 {[%clk 0:02:17.2]} 15. Rdg1 {[%clk 0:01:56.6]}
15... Bd7 {[%clk 0:02:12.3]} 16. Nde2 {[%clk 0:01:40.9]} 16... Re8 {[%clk
0:02:07.3]} 17. Ng3 {[%clk 0:01:36.8]} 17... Nxg3 {[%clk 0:02:03.9]} 18. hxg3
{[%clk 0:01:35.6]} 18... b4 {[%clk 0:02:04.5]} 19. Nd5 {[%clk 0:01:18.9]} 19...
Rxe4 {[%clk 0:02:03.5]} 20. Nf6+ {[%clk 0:01:17.9]} 20... Bxf6 {[%clk
0:02:02.3]} 21. gxf6 {[%clk 0:01:18.8]} 21... Qxf6 {[%clk 0:02:02]} 22. Rd1
{[%clk 0:00:53.4]} 22... Bg4 {[%clk 0:01:52.2]} 23. Bd4 {[%clk 0:00:46.8]} 23...
Qe6 {[%clk 0:01:52.2]} 24. f5 {[%clk 0:00:32.3]} 24... Qxa2 {[%clk 0:01:48.4]}
25. b3 {[%clk 0:00:17.2]} 25... Bxd1 {[%clk 0:01:45.1]} 26. Rxd1 {[%clk
0:00:13.3]} 26... Rae8 {[%clk 0:01:41.4]} 27. Qh6 {[%clk 0:00:12.4]} 27... Rxd4
{[%clk 0:01:41.1]} 28. Rxd4 {[%clk 0:00:12.3]} 28... Qa1+ {[%clk 0:01:40.1]} 0-1

[Event "Early-Titled-Tuesday-Blitz-May-14-2024"]
[Site "Chess.com"]
[Date "2024.05.14"]
[Round "11"]
[White "ChessSwole"]
[Black "FREDERICKtheMATE"]
[Result "1-0"]
[WhiteElo "2609"]
[BlackElo "2665"]
[TimeControl "180+1"]
[EndTime "10:06:06 PDT"]
[Termination "ChessSwole won by resignation"]

1. d4 {[%clk 0:03:00.9]} 1... d5 {[%clk 0:02:59.6]} 2. Nf3 {[%clk 0:03:00.6]}
2... c6 {[%clk 0:03:00.5]} 3. c4 {[%clk 0:02:59.7]} 3... Nf6 {[%clk 0:03:01.4]}
4. Nc3 {[%clk 0:03:00.1]} 4... e6 {[%clk 0:03:01.4]} 5. e3 {[%clk 0:03:00.5]}
5... Nbd7 {[%clk 0:03:01.4]} 6. Be2 {[%clk 0:03:00.2]} 6... Bd6 {[%clk
0:03:01.7]} 7. O-O {[%clk 0:02:59.5]} 7... O-O {[%clk 0:03:01.8]} 8. b3 {[%clk
0:03:00.1]} 8... b6 {[%clk 0:03:01.6]} 9. Bb2 {[%clk 0:02:59.6]} 9... Bb7 {[%clk
0:03:00.7]} 10. Bd3 {[%clk 0:03:00.1]} 10... c5 {[%clk 0:02:58.2]} 11. cxd5
{[%clk 0:02:56.9]} 11... exd5 {[%clk 0:02:57]} 12. Rc1 {[%clk 0:02:54.3]} 12...
Re8 {[%clk 0:02:51.4]} 13. h3 {[%clk 0:02:34.9]} 13... Rc8 {[%clk 0:02:49.4]}
14. Qe2 {[%clk 0:02:15.3]} 14... Ne4 {[%clk 0:02:45.5]} 15. Ba6 {[%clk
0:02:11.2]} 15... Nxc3 {[%clk 0:02:39.7]} 16. Bxc3 {[%clk 0:02:10.3]} 16... Bxa6
{[%clk 0:02:39.8]} 17. Qxa6 {[%clk 0:02:11.2]} 17... Bb8 {[%clk 0:02:39.6]} 18.
Rfd1 {[%clk 0:02:08.3]} 18... c4 {[%clk 0:02:38.6]} 19. Bb2 {[%clk 0:01:49.9]}
19... cxb3 {[%clk 0:02:26.7]} 20. axb3 {[%clk 0:01:50.8]} 20... h6 {[%clk
0:02:20]} 21. Qb5 {[%clk 0:01:45.7]} 21... Nf6 {[%clk 0:02:17.9]} 22. Ne5 {[%clk
0:01:45.6]} 22... Rxc1 {[%clk 0:02:08]} 23. Rxc1 {[%clk 0:01:44.4]} 23... Bxe5
{[%clk 0:02:08.5]} 24. dxe5 {[%clk 0:01:44.7]} 24... Ne4 {[%clk 0:02:09.1]} 25.
Rd1 {[%clk 0:01:36.4]} 25... Re6 {[%clk 0:02:02.7]} 26. Qxd5 {[%clk 0:01:32.2]}
26... Qxd5 {[%clk 0:01:55.5]} 27. Rxd5 {[%clk 0:01:33.1]} 27... Rc6 {[%clk
0:01:54.4]} 28. f3 {[%clk 0:01:25.3]} 28... Ng3 {[%clk 0:01:48.5]} 29. Rd8+
{[%clk 0:01:18]} 29... Kh7 {[%clk 0:01:47.9]} 30. Rd7 {[%clk 0:01:18.5]} 30...
Kg6 {[%clk 0:01:47.6]} 31. Kf2 {[%clk 0:01:04.4]} 31... Nh1+ {[%clk 0:01:34.5]}
32. Kg1 {[%clk 0:01:03.9]} 32... Ng3 {[%clk 0:01:33.3]} 33. Rd6+ {[%clk
0:01:01]} 33... Rxd6 {[%clk 0:01:25]} 34. exd6 {[%clk 0:01:01.9]} 34... Nf5
{[%clk 0:01:03.1]} 35. d7 {[%clk 0:01:02]} 35... Nxe3 {[%clk 0:01:02.1]} 36.
d8=Q {[%clk 0:01:02.3]} 1-0

[Event "Early-Titled-Tuesday-Blitz-May-14-2024"]
[Site "Chess.com"]
[Date "2024.05.14"]
[Round "11"]
[White "cukus"]
[Black "SoCalJuniorChess"]
[Result "1/2-1/2"]
[WhiteElo "2343"]
[BlackElo "2222"]
[TimeControl "180+1"]
[EndTime "10:06:09 PDT"]
[Termination "Game drawn by repetition"]

1. e4 {[%clk 0:03:00.9]} 1... d5 {[%clk 0:02:59.5]} 2. exd5 {[%clk 0:03:00.3]}
2... Qxd5 {[%clk 0:03:00.4]} 3. Nc3 {[%clk 0:03:00.3]} 3... Qd8 {[%clk 0:03:01]}
4. d4 {[%clk 0:02:59.2]} 4... Nf6 {[%clk 0:03:01.5]} 5. Nf3 {[%clk 0:02:58.6]}
5... Bg4 {[%clk 0:03:02.2]} 6. h3 {[%clk 0:02:58]} 6... Bxf3 {[%clk 0:03:02.1]}
7. Qxf3 {[%clk 0:02:57.6]} 7... c6 {[%clk 0:03:03]} 8. Be3 {[%clk 0:02:55.9]}
8... e6 {[%clk 0:03:03.6]} 9. a3 {[%clk 0:02:53.3]} 9... Be7 {[%clk 0:02:51.8]}
10. Bd3 {[%clk 0:02:49.4]} 10... O-O {[%clk 0:02:52]} 11. O-O-O {[%clk
0:02:46.4]} 11... Nbd7 {[%clk 0:02:47.6]} 12. g4 {[%clk 0:02:45.6]} 12... Nd5
{[%clk 0:02:46.4]} 13. Ne4 {[%clk 0:02:29.9]} 13... Qa5 {[%clk 0:02:43.3]} 14.
c4 {[%clk 0:02:22.4]} 14... Bxa3 {[%clk 0:02:37.6]} 15. cxd5 {[%clk 0:01:38.4]}
15... cxd5 {[%clk 0:02:38.5]} 16. bxa3 {[%clk 0:01:27]} 16... Qxa3+ {[%clk
0:02:26.5]} 17. Kd2 {[%clk 0:01:25.6]} 17... Qb2+ {[%clk 0:02:22.4]} 18. Ke1
{[%clk 0:01:20.1]} 18... dxe4 {[%clk 0:02:19]} 19. Bxe4 {[%clk 0:01:18.5]} 19...
Nf6 {[%clk 0:02:15.6]} 20. Bd3 {[%clk 0:01:13.8]} 20... a5 {[%clk 0:02:12.8]}
21. g5 {[%clk 0:01:10.5]} 21... Nd5 {[%clk 0:02:09.8]} 22. Kf1 {[%clk
0:00:48.7]} 22... a4 {[%clk 0:02:10]} 23. h4 {[%clk 0:00:37.2]} 23... a3 {[%clk
0:02:10.1]} 24. h5 {[%clk 0:00:28.7]} 24... a2 {[%clk 0:02:10.2]} 25. Qe4 {[%clk
0:00:27.3]} 25... f5 {[%clk 0:01:54]} 26. Qxe6+ {[%clk 0:00:17.2]} 26... Kh8
{[%clk 0:01:54.3]} 27. h6 {[%clk 0:00:13.3]} 27... a1=Q {[%clk 0:01:47.3]} 28.
hxg7+ {[%clk 0:00:12.3]} 28... Kxg7 {[%clk 0:01:47.2]} 29. Rxh7+ {[%clk
0:00:11.9]} 29... Kxh7 {[%clk 0:01:47.6]} 30. Qh6+ {[%clk 0:00:11]} 30... Kg8
{[%clk 0:01:47.9]} 31. Qg6+ {[%clk 0:00:10.8]} 31... Kh8 {[%clk 0:01:48.4]} 32.
Qh6+ {[%clk 0:00:07.9]} 32... Kg8 {[%clk 0:01:48.8]} 33. Qg6+ {[%clk 0:00:07.6]}
33... Kh8 {[%clk 0:01:49.1]} 34. Qh6+ {[%clk 0:00:06.9]} 34... Kg8 {[%clk
0:01:49.5]} 1/2-1/2

[Event "Early-Titled-Tuesday-Blitz-May-14-2024"]
[Site "Chess.com"]
[Date "2024.05.14"]
[Round "11"]
[White "campochess"]
[Black "Mandaloriana19"]
[Result "0-1"]
[WhiteElo "2095"]
[BlackElo "2413"]
[TimeControl "180+1"]
[EndTime "10:06:10 PDT"]
[Termination "Mandaloriana19 won by resignation"]

1. Nc3 {[%clk 0:02:59.7]} 1... c5 {[%clk 0:02:57.3]} 2. e4 {[%clk 0:02:57.7]}
2... a6 {[%clk 0:02:57.8]} 3. Nf3 {[%clk 0:02:56.9]} 3... d6 {[%clk 0:02:58.2]}
4. d4 {[%clk 0:02:56.9]} 4... cxd4 {[%clk 0:02:58.2]} 5. Nxd4 {[%clk 0:02:56.7]}
5... g6 {[%clk 0:02:58.8]} 6. Be3 {[%clk 0:02:55.2]} 6... Bg7 {[%clk 0:02:59.4]}
7. Qd2 {[%clk 0:02:55.3]} 7... Nf6 {[%clk 0:02:59.9]} 8. f3 {[%clk 0:02:55]}
8... h5 {[%clk 0:02:59.2]} 9. h4 {[%clk 0:02:49.6]} 9... b5 {[%clk 0:02:59.3]}
10. a3 {[%clk 0:02:48.1]} 10... Bb7 {[%clk 0:02:58.9]} 11. Be2 {[%clk
0:02:48.2]} 11... Nbd7 {[%clk 0:02:59.3]} 12. Kf2 {[%clk 0:02:43.1]} 12... Rc8
{[%clk 0:02:59.5]} 13. Rad1 {[%clk 0:02:41.9]} 13... Ne5 {[%clk 0:02:58.9]} 14.
b3 {[%clk 0:02:29.5]} 14... Qa5 {[%clk 0:02:45.5]} 15. Nb1 {[%clk 0:02:12]}
15... Qc7 {[%clk 0:02:42.3]} 16. Rc1 {[%clk 0:02:07.3]} 16... O-O {[%clk
0:02:37.9]} 17. c4 {[%clk 0:02:07.2]} 17... bxc4 {[%clk 0:02:37.2]} 18. Bxc4
{[%clk 0:02:03]} 18... Nxc4 {[%clk 0:02:36.4]} 19. Rxc4 {[%clk 0:02:02.2]} 19...
Qd7 {[%clk 0:02:36]} 20. Rhc1 {[%clk 0:02:01.5]} 20... d5 {[%clk 0:02:33]} 21.
Rxc8 {[%clk 0:01:55.6]} 21... Rxc8 {[%clk 0:02:32.3]} 22. Rxc8+ {[%clk
0:01:55.1]} 22... Qxc8 {[%clk 0:02:31.4]} 23. e5 {[%clk 0:01:54.5]} 23... Ne8
{[%clk 0:02:30.3]} 24. f4 {[%clk 0:01:52.5]} 24... Qg4 {[%clk 0:02:29.4]} 25. g3
{[%clk 0:01:46]} 25... Qh3 {[%clk 0:02:29.1]} 26. Nf3 {[%clk 0:01:37.1]} 26...
Qh1 {[%clk 0:02:26]} 27. Qc1 {[%clk 0:01:30.1]} 27... Qh3 {[%clk 0:02:17.6]} 28.
Ng5 {[%clk 0:01:29.2]} 28... Qh2+ {[%clk 0:02:16.7]} 29. Ke1 {[%clk 0:01:19.5]}
29... Qxg3+ {[%clk 0:02:14.4]} 30. Kd2 {[%clk 0:01:19.3]} 30... d4 {[%clk
0:02:09.1]} 31. Bxd4 {[%clk 0:01:10.3]} 31... Qxf4+ {[%clk 0:02:08.5]} 32. Be3
{[%clk 0:01:04.7]} 32... Qxe5 {[%clk 0:02:08.2]} 33. Qc4 {[%clk 0:00:56.3]}
33... Qd5+ {[%clk 0:02:04.3]} 34. Qxd5 {[%clk 0:00:55]} 34... Bxd5 {[%clk
0:02:05.2]} 35. Nc3 {[%clk 0:00:55]} 35... Bxb3 {[%clk 0:02:05]} 36. Nce4 {[%clk
0:00:53.8]} 36... Nd6 {[%clk 0:02:03]} 37. Nc5 {[%clk 0:00:53.3]} 37... Bc4
{[%clk 0:02:00.9]} 38. Nf3 {[%clk 0:00:46.5]} 38... Bb5 {[%clk 0:01:57.2]} 39.
Bd4 {[%clk 0:00:43.4]} 39... Nc4+ {[%clk 0:01:54.5]} 40. Kc3 {[%clk 0:00:42.7]}
40... Nxa3 {[%clk 0:01:54.4]} 41. Bxg7 {[%clk 0:00:39.5]} 41... Kxg7 {[%clk
0:01:55.3]} 42. Nd4 {[%clk 0:00:38.5]} 42... Nc4 {[%clk 0:01:53.8]} 43. Kb4
{[%clk 0:00:37.5]} 43... Ne3 {[%clk 0:01:49.6]} 44. Nxb5 {[%clk 0:00:37]} 44...
axb5 {[%clk 0:01:49.6]} 45. Kxb5 {[%clk 0:00:36.7]} 45... Nf5 {[%clk 0:01:50.3]}
0-1

[Event "Early-Titled-Tuesday-Blitz-May-14-2024"]
[Site "Chess.com"]
[Date "2024.05.14"]
[Round "11"]
[White "talaicito"]
[Black "Darko-Dimitrijevic"]
[Result "0-1"]
[WhiteElo "2347"]
[BlackElo "2214"]
[TimeControl "180+1"]
[EndTime "10:06:19 PDT"]
[Termination "Darko-Dimitrijevic won on time"]

1. d4 {[%clk 0:03:00.9]} 1... Nf6 {[%clk 0:02:51.5]} 2. Nc3 {[%clk 0:03:00.4]}
2... e6 {[%clk 0:02:51.1]} 3. Bf4 {[%clk 0:03:00.7]} 3... a6 {[%clk 0:02:49.6]}
4. e3 {[%clk 0:03:00.6]} 4... d5 {[%clk 0:02:31.4]} 5. Nf3 {[%clk 0:03:00.1]}
5... Nc6 {[%clk 0:02:29.5]} 6. Bd3 {[%clk 0:02:52.4]} 6... Be7 {[%clk
0:02:28.2]} 7. O-O {[%clk 0:02:52.1]} 7... O-O {[%clk 0:02:27.1]} 8. Ne5 {[%clk
0:02:44.9]} 8... Nxe5 {[%clk 0:02:24.7]} 9. Bxe5 {[%clk 0:02:36]} 9... c5 {[%clk
0:02:23.4]} 10. dxc5 {[%clk 0:02:26.4]} 10... Bxc5 {[%clk 0:02:22.4]} 11. Ne2
{[%clk 0:02:26.9]} 11... b5 {[%clk 0:02:19.5]} 12. Nd4 {[%clk 0:02:26.4]} 12...
Bb7 {[%clk 0:02:18.4]} 13. c3 {[%clk 0:02:11.4]} 13... Rc8 {[%clk 0:02:15.9]}
14. Qb3 {[%clk 0:01:30.1]} 14... Qe7 {[%clk 0:02:14.1]} 15. a4 {[%clk
0:01:06.8]} 15... b4 {[%clk 0:02:10.6]} 16. cxb4 {[%clk 0:01:03.5]} 16... Bxb4
{[%clk 0:02:10.1]} 17. Rfc1 {[%clk 0:00:58.7]} 17... Nd7 {[%clk 0:01:59.5]} 18.
Bg3 {[%clk 0:00:40]} 18... a5 {[%clk 0:01:58]} 19. Qd1 {[%clk 0:00:20.9]} 19...
e5 {[%clk 0:01:56.2]} 20. Nf5 {[%clk 0:00:14.3]} 20... Qe6 {[%clk 0:01:47.6]}
21. Qg4 {[%clk 0:00:12.1]} 21... g6 {[%clk 0:01:44.4]} 22. Nh6+ {[%clk
0:00:09.1]} 22... Kg7 {[%clk 0:01:43.8]} 23. Nf5+ {[%clk 0:00:07.1]} 23... Kh8
{[%clk 0:01:39.4]} 24. Nh6 {[%clk 0:00:06.6]} 24... f5 {[%clk 0:01:35.2]} 25.
Qe2 {[%clk 0:00:02]} 25... Kg7 {[%clk 0:01:27.9]} 0-1